[Event "*** Titled Tuesday 3|2 Blitz"]
[Site "Chess.com"]
[Date "2015.10.06"]
[Round "6"]
[White "HansCoolNiemann"]
[Black "Penguininja"]
[Result "1-0"]
[WhiteElo "2118"]
[BlackElo "2145"]
[TimeControl "180+2"]
[EndTime "18:15:48 PDT"]
[Termination "HansCoolNiemann won on time"]

1. d4 {[%clk 0:02:59.2]} 1... d5 {[%clk 0:03:00.6]} 2. c4 {[%clk 0:03:00]} 2...
c6 {[%clk 0:03:01.6]} 3. Nf3 {[%clk 0:03:01.5]} 3... Nf6 {[%clk 0:03:02.2]} 4.
Nc3 {[%clk 0:03:02.9]} 4... e6 {[%clk 0:03:03.3]} 5. e3 {[%clk 0:02:57.8]} 5...
Nbd7 {[%clk 0:03:03.6]} 6. b3 {[%clk 0:02:57.7]} 6... g6 {[%clk 0:03:01.2]} 7.
Be2 {[%clk 0:02:56.7]} 7... Bg7 {[%clk 0:03:02.1]} 8. Kf1 {[%clk 0:02:58.6]}
8... O-O {[%clk 0:03:03.6]} 9. g3 {[%clk 0:02:59.5]} 9... b6 {[%clk 0:03:03.2]}
10. Kg2 {[%clk 0:03:00.4]} 10... Bb7 {[%clk 0:03:04.8]} 11. Ba3 {[%clk
0:02:59.6]} 11... Re8 {[%clk 0:02:55.9]} 12. Re1 {[%clk 0:02:55.2]} 12... c5
{[%clk 0:02:56.8]} 13. Kg1 {[%clk 0:02:52.8]} 13... dxc4 {[%clk 0:02:47.1]} 14.
Bxc4 {[%clk 0:02:48.3]} 14... Rc8 {[%clk 0:02:47.2]} 15. Nb5 {[%clk 0:02:43.8]}
15... Ne4 {[%clk 0:02:10.3]} 16. Bd3 {[%clk 0:02:24.9]} 16... cxd4 {[%clk
0:01:50.7]} 17. Nfxd4 {[%clk 0:02:14.2]} 17... Nc3 {[%clk 0:01:50.2]} 18. Nxc3
{[%clk 0:02:11.5]} 18... Rxc3 {[%clk 0:01:52.1]} 19. Nb5 {[%clk 0:02:10.8]}
19... Rc8 {[%clk 0:01:29.1]} 20. Nd6 {[%clk 0:01:48.9]} 20... Ne5 {[%clk
0:00:36.5]} 21. Nxb7 {[%clk 0:01:46.4]} 21... Qxd3 {[%clk 0:00:35.8]} 22. Nd6
{[%clk 0:01:29.9]} 22... Qxd1 {[%clk 0:00:25.1]} 23. Rexd1 {[%clk 0:01:28.3]}
23... Nf3+ {[%clk 0:00:10.9]} 24. Kg2 {[%clk 0:01:28.1]} 24... Bxa1 {[%clk
0:00:11.6]} 25. Kxf3 {[%clk 0:01:23.6]} 25... Bf6 {[%clk 0:00:10.5]} 26. Nxe8
{[%clk 0:01:22.8]} 26... Rxe8 {[%clk 0:00:11.1]} 27. Rd7 {[%clk 0:01:24.1]}
27... Ra8 {[%clk 0:00:11]} 28. Bd6 {[%clk 0:01:23]} 28... a5 {[%clk 0:00:11.4]}
29. Rb7 {[%clk 0:01:22.3]} 29... Ra6 {[%clk 0:00:12.2]} 30. Bc7 {[%clk
0:01:22.7]} 30... a4 {[%clk 0:00:11.1]} 31. b4 {[%clk 0:01:20.5]} 31... Bc3
{[%clk 0:00:10.3]} 32. b5 {[%clk 0:01:18.3]} 32... Ra5 {[%clk 0:00:11.2]} 33.
Bxb6 {[%clk 0:01:14.5]} 33... Ra8 {[%clk 0:00:04.1]} 34. Bc7 {[%clk 0:01:14.7]}
1-0

[Event "*** Titled Tuesday 3|2 Blitz"]
[Site "Chess.com"]
[Date "2015.10.06"]
[Round "6"]
[White "spirals5"]
[Black "ltpnj"]
[Result "0-1"]
[WhiteElo "2156"]
[BlackElo "2333"]
[TimeControl "180+2"]
[EndTime "18:16:28 PDT"]
[Termination "ltpnj won by checkmate"]

1. e4 {[%clk 0:03:01.9]} 1... c5 {[%clk 0:03:00.5]} 2. Nc3 {[%clk 0:03:02]} 2...
Nc6 {[%clk 0:03:00.2]} 3. g3 {[%clk 0:03:02.7]} 3... g6 {[%clk 0:03:01.4]} 4.
Bg2 {[%clk 0:03:03.6]} 4... Bg7 {[%clk 0:03:02.8]} 5. d3 {[%clk 0:03:04.8]} 5...
e6 {[%clk 0:03:04]} 6. f4 {[%clk 0:03:05.9]} 6... Nge7 {[%clk 0:03:02.8]} 7. Be3
{[%clk 0:03:05.9]} 7... b6 {[%clk 0:02:58.3]} 8. e5 {[%clk 0:03:00.4]} 8... d5
{[%clk 0:02:57.1]} 9. Bf2 {[%clk 0:02:56.6]} 9... h5 {[%clk 0:02:55.5]} 10. Nf3
{[%clk 0:02:57.3]} 10... Bb7 {[%clk 0:02:55.9]} 11. h3 {[%clk 0:02:54.4]} 11...
a6 {[%clk 0:02:56.7]} 12. Qd2 {[%clk 0:02:50.7]} 12... Qd7 {[%clk 0:02:54]} 13.
O-O-O {[%clk 0:02:50.8]} 13... O-O-O {[%clk 0:02:52.6]} 14. g4 {[%clk
0:02:47.1]} 14... Bh6 {[%clk 0:02:51.9]} 15. Kb1 {[%clk 0:02:37.2]} 15... Kb8
{[%clk 0:02:52.9]} 16. d4 {[%clk 0:02:36.7]} 16... c4 {[%clk 0:02:45.8]} 17. Ne2
{[%clk 0:02:24.3]} 17... Rc8 {[%clk 0:02:28.5]} 18. Ng5 {[%clk 0:02:24.8]} 18...
Bxg5 {[%clk 0:02:24.9]} 19. fxg5 {[%clk 0:02:25.2]} 19... b5 {[%clk 0:02:25.5]}
20. gxh5 {[%clk 0:02:24.3]} 20... Rxh5 {[%clk 0:02:25.2]} 21. Bf3 {[%clk
0:02:19.3]} 21... Rhh8 {[%clk 0:02:23.3]} 22. h4 {[%clk 0:02:20.1]} 22... b4
{[%clk 0:02:20.2]} 23. h5 {[%clk 0:02:19.4]} 23... gxh5 {[%clk 0:02:20.3]} 24.
Rxh5 {[%clk 0:02:19.4]} 24... a5 {[%clk 0:02:19.1]} 25. Rxh8 {[%clk 0:02:19.4]}
25... Rxh8 {[%clk 0:02:19.5]} 26. Rh1 {[%clk 0:02:16.1]} 26... Rxh1+ {[%clk
0:02:20.2]} 27. Bxh1 {[%clk 0:02:16.6]} 27... a4 {[%clk 0:02:12.2]} 28. c3
{[%clk 0:02:14.4]} 28... b3 {[%clk 0:02:09]} 29. a3 {[%clk 0:02:13.6]} 29... Na7
{[%clk 0:02:08.6]} 30. Qf4 {[%clk 0:02:05.3]} 30... Nf5 {[%clk 0:02:08.9]} 31.
Ng3 {[%clk 0:02:04.5]} 31... Nxg3 {[%clk 0:02:08]} 32. Bxg3 {[%clk 0:02:04.6]}
32... Nb5 {[%clk 0:02:09.3]} 33. Bf3 {[%clk 0:01:58.5]} 33... Qe7 {[%clk
0:01:58.4]} 34. Qc1 {[%clk 0:01:33.1]} 34... Bc6 {[%clk 0:01:57.8]} 35. Bf4
{[%clk 0:01:27.2]} 35... Be8 {[%clk 0:01:58]} 36. Bd2 {[%clk 0:01:23.9]} 36...
Kc7 {[%clk 0:01:56.4]} 37. Bf4 {[%clk 0:01:20.7]} 37... Kb6 {[%clk 0:01:56.4]}
38. Bd2 {[%clk 0:01:17.4]} 38... Qf8 {[%clk 0:01:57.6]} 39. Bg4 {[%clk
0:01:13.4]} 39... Qg7 {[%clk 0:01:56.7]} 40. Qf1 {[%clk 0:01:08.9]} 40... Qg6+
{[%clk 0:01:53.5]} 41. Ka1 {[%clk 0:01:09.1]} 41... Nxa3 {[%clk 0:01:45.7]} 42.
bxa3 {[%clk 0:00:55]} 42... Qc2 {[%clk 0:01:46]} 43. Qb1 {[%clk 0:00:52.8]}
43... Qxd2 {[%clk 0:01:46.6]} 44. Bh5 {[%clk 0:00:45.2]} 44... Qxc3+ {[%clk
0:01:46.7]} 45. Qb2 {[%clk 0:00:45.9]} 45... Qe1+ {[%clk 0:01:42.4]} 46. Qb1
{[%clk 0:00:46.7]} 46... Qxb1+ {[%clk 0:01:31.8]} 47. Kxb1 {[%clk 0:00:47.3]}
47... c3 {[%clk 0:01:33.3]} 48. Kc1 {[%clk 0:00:34.9]} 48... b2+ {[%clk
0:01:27.4]} 49. Kc2 {[%clk 0:00:31.4]} 49... Bb5 {[%clk 0:01:28.3]} 50. Bxf7
{[%clk 0:00:17.3]} 50... Bd3+ {[%clk 0:01:28.8]} 51. Kxc3 {[%clk 0:00:18]} 51...
b1=Q {[%clk 0:01:29]} 52. Bxe6 {[%clk 0:00:18]} 52... Qc2+ {[%clk 0:01:28]} 53.
Kb4 {[%clk 0:00:18.5]} 53... Qc4# {[%clk 0:01:29.5]} 0-1

[Event "*** Titled Tuesday 3|2 Blitz"]
[Site "Chess.com"]
[Date "2015.10.06"]
[Round "6"]
[White "dsanchez1973"]
[Black "ChessFrois"]
[Result "1-0"]
[WhiteElo "1963"]
[BlackElo "1819"]
[TimeControl "180+2"]
[EndTime "18:16:33 PDT"]
[Termination "dsanchez1973 won by resignation"]

1. e4 {[%clk 0:02:34.8]} 1... c5 {[%clk 0:03:00.3]} 2. Nf3 {[%clk 0:02:35.3]}
2... d6 {[%clk 0:03:00.9]} 3. d4 {[%clk 0:02:37.2]} 3... cxd4 {[%clk 0:03:02]}
4. Nxd4 {[%clk 0:02:39]} 4... Nf6 {[%clk 0:03:02.3]} 5. Nc3 {[%clk 0:02:40.5]}
5... a6 {[%clk 0:02:58]} 6. Be3 {[%clk 0:02:41.3]} 6... e6 {[%clk 0:02:57]} 7.
g4 {[%clk 0:02:42.3]} 7... b5 {[%clk 0:02:56.9]} 8. g5 {[%clk 0:02:43.1]} 8...
Nfd7 {[%clk 0:02:57.2]} 9. h4 {[%clk 0:02:44.2]} 9... Bb7 {[%clk 0:02:58]} 10.
f3 {[%clk 0:02:44.5]} 10... Be7 {[%clk 0:02:56.4]} 11. Bd3 {[%clk 0:02:43.2]}
11... Ne5 {[%clk 0:02:57]} 12. Qe2 {[%clk 0:02:43]} 12... Nbd7 {[%clk
0:02:57.8]} 13. f4 {[%clk 0:02:37.7]} 13... Nxd3+ {[%clk 0:02:58.5]} 14. cxd3
{[%clk 0:02:38.6]} 14... Qa5 {[%clk 0:02:51.2]} 15. Nb3 {[%clk 0:02:35.6]} 15...
Qc7 {[%clk 0:02:49.8]} 16. Rc1 {[%clk 0:02:35.1]} 16... Nc5 {[%clk 0:02:46.6]}
17. O-O {[%clk 0:02:25.8]} 17... O-O {[%clk 0:02:37.8]} 18. Nd4 {[%clk
0:02:26.6]} 18... b4 {[%clk 0:02:28.9]} 19. Nd1 {[%clk 0:02:13.1]} 19... Qd7
{[%clk 0:02:25.8]} 20. Nf2 {[%clk 0:02:09.3]} 20... a5 {[%clk 0:02:17.6]} 21. h5
{[%clk 0:02:07.6]} 21... Rac8 {[%clk 0:02:04.3]} 22. Kh2 {[%clk 0:02:06]} 22...
d5 {[%clk 0:01:47.5]} 23. e5 {[%clk 0:02:06.2]} 23... Kh8 {[%clk 0:01:46]} 24.
Nf3 {[%clk 0:01:52.8]} 24... f5 {[%clk 0:01:33.9]} 25. exf6 {[%clk 0:01:52.6]}
25... gxf6 {[%clk 0:01:34.9]} 26. Bd4 {[%clk 0:01:50.6]} 26... Qd6 {[%clk
0:01:26.5]} 27. Nh3 {[%clk 0:01:42.6]} 27... Nd7 {[%clk 0:01:09.4]} 28. Rfe1
{[%clk 0:01:41.5]} 28... e5 {[%clk 0:01:02.9]} 29. fxe5 {[%clk 0:01:41.1]} 29...
fxe5 {[%clk 0:01:04]} 30. Nxe5 {[%clk 0:01:38.6]} 30... Rxc1 {[%clk 0:00:45.8]}
31. Rxc1 {[%clk 0:01:39]} 31... Rf5 {[%clk 0:00:43.7]} 32. Re1 {[%clk
0:01:33.4]} 32... Bxg5 {[%clk 0:00:24.2]} 33. Kh1 {[%clk 0:01:16.8]} 33... Kg8
{[%clk 0:00:15.3]} 34. Qg4 {[%clk 0:00:55.1]} 34... Nxe5 {[%clk 0:00:05.2]} 35.
Qxf5 {[%clk 0:00:53.3]} 35... Nf7 {[%clk 0:00:04.8]} 36. Re8+ {[%clk 0:00:51.1]}
36... Qf8 {[%clk 0:00:05.9]} 37. Rxf8+ {[%clk 0:00:50.4]} 37... Kxf8 {[%clk
0:00:07.8]} 38. Nxg5 {[%clk 0:00:51.6]} 1-0

[Event "*** Titled Tuesday 3|2 Blitz"]
[Site "Chess.com"]
[Date "2015.10.06"]
[Round "6"]
[White "Iball95"]
[Black "cheese111"]
[Result "1-0"]
[WhiteElo "2340"]
[BlackElo "2162"]
[TimeControl "180+2"]
[EndTime "18:16:52 PDT"]
[Termination "Iball95 won by resignation"]

1. e4 {[%clk 0:02:54.4]} 1... e5 {[%clk 0:03:00.7]} 2. Nf3 {[%clk 0:02:53.9]}
2... Nc6 {[%clk 0:03:01.7]} 3. Bb5 {[%clk 0:02:55.3]} 3... a6 {[%clk 0:03:02.9]}
4. Ba4 {[%clk 0:02:56]} 4... Nf6 {[%clk 0:03:04.4]} 5. O-O {[%clk 0:02:56.5]}
5... Be7 {[%clk 0:03:06]} 6. Re1 {[%clk 0:02:56.8]} 6... b5 {[%clk 0:03:07.5]}
7. Bb3 {[%clk 0:02:57.2]} 7... d6 {[%clk 0:03:09.1]} 8. a4 {[%clk 0:02:57]} 8...
b4 {[%clk 0:03:08.2]} 9. h3 {[%clk 0:02:56.1]} 9... O-O {[%clk 0:03:08.9]} 10.
d3 {[%clk 0:02:57.2]} 10... Nd7 {[%clk 0:03:01.4]} 11. Bd5 {[%clk 0:02:52.3]}
11... Bb7 {[%clk 0:03:00.2]} 12. Nbd2 {[%clk 0:02:52.4]} 12... Na5 {[%clk
0:02:52.2]} 13. Ba2 {[%clk 0:02:49.8]} 13... c5 {[%clk 0:02:47.5]} 14. Nf1
{[%clk 0:02:50.5]} 14... Re8 {[%clk 0:02:39.5]} 15. Ng3 {[%clk 0:02:50.5]} 15...
g6 {[%clk 0:02:39.6]} 16. Bh6 {[%clk 0:02:47.2]} 16... Nf8 {[%clk 0:02:39.1]}
17. Qd2 {[%clk 0:02:44.2]} 17... Ne6 {[%clk 0:02:39.7]} 18. Rf1 {[%clk
0:02:38.9]} 18... Bf8 {[%clk 0:02:34.7]} 19. h4 {[%clk 0:02:37.9]} 19... Bxh6
{[%clk 0:02:25.1]} 20. Qxh6 {[%clk 0:02:39.8]} 20... Qf6 {[%clk 0:02:27]} 21.
Nf5 {[%clk 0:02:00.3]} 21... Ng7 {[%clk 0:02:16.8]} 22. Ng5 {[%clk 0:01:53.6]}
22... Nxf5 {[%clk 0:02:07.1]} 23. exf5 {[%clk 0:01:49.5]} 23... b3 {[%clk
0:01:29.8]} 24. Qxh7+ {[%clk 0:01:37.7]} 24... Kf8 {[%clk 0:01:29.4]} 25. cxb3
{[%clk 0:01:38.8]} 25... Bd5 {[%clk 0:00:21.4]} 26. b4 {[%clk 0:01:03.7]} 26...
Bxa2 {[%clk 0:00:20.9]} 27. bxa5 {[%clk 0:01:04.6]} 27... Bd5 {[%clk 0:00:21.7]}
28. f4 {[%clk 0:00:43.9]} 28... Qg7 {[%clk 0:00:22.1]} 29. fxe5 {[%clk
0:00:39.5]} 29... Qxh7 {[%clk 0:00:23.1]} 30. Nxh7+ {[%clk 0:00:39.7]} 30... Kg7
{[%clk 0:00:24.7]} 31. Ng5 {[%clk 0:00:38.5]} 31... Rxe5 {[%clk 0:00:24.8]} 32.
f6+ {[%clk 0:00:32.9]} 32... Kg8 {[%clk 0:00:25.6]} 33. Rae1 {[%clk 0:00:33.6]}
33... Rae8 {[%clk 0:00:24.8]} 34. Rxe5 {[%clk 0:00:31.7]} 34... Rxe5 {[%clk
0:00:26.7]} 35. Rf4 {[%clk 0:00:31.4]} 35... Re2 {[%clk 0:00:26.5]} 36. b4
{[%clk 0:00:32.1]} 36... Rxg2+ {[%clk 0:00:25.6]} 37. Kf1 {[%clk 0:00:33.3]}
37... cxb4 {[%clk 0:00:25.6]} 38. Rxb4 {[%clk 0:00:33]} 38... Rxg5 {[%clk
0:00:12.4]} 39. hxg5 {[%clk 0:00:34.9]} 39... Bc6 {[%clk 0:00:11.6]} 40. Rb6
{[%clk 0:00:33]} 40... Bxa4 {[%clk 0:00:11.8]} 41. Rxa6 {[%clk 0:00:33.6]} 41...
d5 {[%clk 0:00:13]} 42. Rd6 {[%clk 0:00:34.3]} 1-0

[Event "*** Titled Tuesday 3|2 Blitz"]
[Site "Chess.com"]
[Date "2015.10.06"]
[Round "6"]
[White "chess960now"]
[Black "NMofPuppets"]
[Result "1-0"]
[WhiteElo "1969"]
[BlackElo "2162"]
[TimeControl "180+2"]
[EndTime "18:17:02 PDT"]
[Termination "chess960now won by resignation"]

1. d4 {[%clk 0:03:01.9]} 1... d5 {[%clk 0:03:00.9]} 2. c4 {[%clk 0:03:02.8]}
2... c6 {[%clk 0:03:02.1]} 3. Nf3 {[%clk 0:02:59.8]} 3... Nf6 {[%clk 0:03:03.6]}
4. e3 {[%clk 0:03:01.1]} 4... e6 {[%clk 0:03:05.1]} 5. Bd3 {[%clk 0:02:54.4]}
5... dxc4 {[%clk 0:03:05.5]} 6. Bxc4 {[%clk 0:02:55.4]} 6... b5 {[%clk
0:03:07.4]} 7. Bb3 {[%clk 0:02:56.3]} 7... Nbd7 {[%clk 0:03:07.9]} 8. O-O {[%clk
0:02:56.6]} 8... a6 {[%clk 0:03:09.1]} 9. Nc3 {[%clk 0:02:56.1]} 9... Be7 {[%clk
0:03:08]} 10. e4 {[%clk 0:02:56.9]} 10... c5 {[%clk 0:03:07.2]} 11. e5 {[%clk
0:02:57.6]} 11... cxd4 {[%clk 0:03:05.9]} 12. exf6 {[%clk 0:02:51]} 12... Bxf6
{[%clk 0:02:38]} 13. Nxd4 {[%clk 0:02:48.4]} 13... O-O {[%clk 0:02:34.6]} 14.
Be3 {[%clk 0:02:42.7]} 14... Bb7 {[%clk 0:02:35.2]} 15. f3 {[%clk 0:02:27.3]}
15... Rc8 {[%clk 0:02:11]} 16. Bc2 {[%clk 0:02:21.9]} 16... Qe7 {[%clk
0:02:02.9]} 17. Be4 {[%clk 0:02:20.7]} 17... Bd5 {[%clk 0:01:55.7]} 18. Bxd5
{[%clk 0:02:15.1]} 18... exd5 {[%clk 0:01:57.6]} 19. Nxd5 {[%clk 0:02:14.6]}
19... Qe5 {[%clk 0:01:53.5]} 20. Nxf6+ {[%clk 0:02:10.1]} 20... Nxf6 {[%clk
0:01:55.1]} 21. Bf2 {[%clk 0:02:07.1]} 21... Rfd8 {[%clk 0:01:54.9]} 22. Nc6
{[%clk 0:01:59.2]} 22... Rxd1 {[%clk 0:01:32.3]} 23. Nxe5 {[%clk 0:01:59]} 23...
Rxa1 {[%clk 0:01:32]} 24. Rxa1 {[%clk 0:01:59.1]} 24... Rc2 {[%clk 0:01:33.6]}
25. Rb1 {[%clk 0:01:53.3]} 25... Nd5 {[%clk 0:01:31.9]} 26. g3 {[%clk 0:01:23]}
26... f6 {[%clk 0:01:28.1]} 27. Nd7 {[%clk 0:01:07.9]} 27... Nb4 {[%clk
0:01:28]} 28. a3 {[%clk 0:01:03.7]} 28... Nd3 {[%clk 0:01:28.9]} 29. Bd4 {[%clk
0:01:02.5]} 29... Kf7 {[%clk 0:01:22.5]} 30. Nb6 {[%clk 0:00:55.1]} 30... Ke6
{[%clk 0:01:20.1]} 31. Rd1 {[%clk 0:00:51.2]} 31... Nxb2 {[%clk 0:01:12.1]} 32.
Bxb2 {[%clk 0:00:51.5]} 32... Rxb2 {[%clk 0:01:14]} 33. Nd7 {[%clk 0:00:47.9]}
33... Ke7 {[%clk 0:01:07.4]} 34. Nc5 {[%clk 0:00:48.4]} 34... a5 {[%clk
0:01:06.9]} 35. Rd7+ {[%clk 0:00:38.6]} 35... Kf8 {[%clk 0:01:06.1]} 36. Ra7
{[%clk 0:00:31.2]} 36... Rc2 {[%clk 0:00:53.6]} 37. Ne6+ {[%clk 0:00:29.5]}
37... Kg8 {[%clk 0:00:46.9]} 38. Rxa5 {[%clk 0:00:18.3]} 38... Kf7 {[%clk
0:00:48.1]} 39. Nd4 {[%clk 0:00:16.6]} 39... Rc4 {[%clk 0:00:47.2]} 40. Nxb5
{[%clk 0:00:17.2]} 40... Rc1+ {[%clk 0:00:47.1]} 41. Kg2 {[%clk 0:00:18]} 41...
Rc2+ {[%clk 0:00:49]} 42. Kh3 {[%clk 0:00:19.1]} 42... Rf2 {[%clk 0:00:49.4]}
43. f4 {[%clk 0:00:19.6]} 43... Rf3 {[%clk 0:00:50]} 44. Ra7+ {[%clk 0:00:19.6]}
44... Kg6 {[%clk 0:00:51]} 45. Nd6 {[%clk 0:00:19.8]} 45... Rd3 {[%clk
0:00:49.6]} 46. Ne8 {[%clk 0:00:20]} 46... Kh6 {[%clk 0:00:33.3]} 47. Nxg7
{[%clk 0:00:18.7]} 47... Rd5 {[%clk 0:00:32.8]} 48. a4 {[%clk 0:00:16.8]} 48...
Rh5+ {[%clk 0:00:33.4]} 49. Nxh5 {[%clk 0:00:17.2]} 49... Kxh5 {[%clk
0:00:35.3]} 50. Rxh7+ {[%clk 0:00:17.5]} 50... Kg6 {[%clk 0:00:35.9]} 51. Ra7
{[%clk 0:00:18.4]} 1-0

[Event "*** Titled Tuesday 3|2 Blitz"]
[Site "Chess.com"]
[Date "2015.10.06"]
[Round "6"]
[White "UltimateCrusher2"]
[Black "Makalexa"]
[Result "1-0"]
[WhiteElo "2016"]
[BlackElo "1955"]
[TimeControl "180+2"]
[EndTime "18:17:21 PDT"]
[Termination "UltimateCrusher2 won by resignation"]

1. e4 {[%clk 0:03:01.9]} 1... e5 {[%clk 0:02:59.3]} 2. Nf3 {[%clk 0:03:02.1]}
2... Nc6 {[%clk 0:02:59.5]} 3. Bb5 {[%clk 0:03:03]} 3... Nd4 {[%clk 0:02:55.8]}
4. Nxd4 {[%clk 0:03:02.6]} 4... exd4 {[%clk 0:02:57.7]} 5. O-O {[%clk
0:03:03.8]} 5... Bc5 {[%clk 0:02:55.6]} 6. d3 {[%clk 0:02:52]} 6... c6 {[%clk
0:02:53.6]} 7. Bc4 {[%clk 0:02:51.3]} 7... d5 {[%clk 0:02:54.5]} 8. exd5 {[%clk
0:02:50.2]} 8... cxd5 {[%clk 0:02:56.4]} 9. Re1+ {[%clk 0:02:51.8]} 9... Kf8
{[%clk 0:02:56.4]} 10. Bb3 {[%clk 0:02:51.9]} 10... Be6 {[%clk 0:02:50.1]} 11.
Nd2 {[%clk 0:02:50.2]} 11... Qf6 {[%clk 0:02:39.1]} 12. Qf3 {[%clk 0:02:43.9]}
12... Rd8 {[%clk 0:02:32.8]} 13. Qxf6 {[%clk 0:02:44.2]} 13... Nxf6 {[%clk
0:02:33.1]} 14. Nf3 {[%clk 0:02:45.9]} 14... g6 {[%clk 0:02:16.3]} 15. Bf4
{[%clk 0:02:46.5]} 15... Nd7 {[%clk 0:02:13.4]} 16. Bh6+ {[%clk 0:02:24.9]}
16... Kg8 {[%clk 0:02:07]} 17. Ng5 {[%clk 0:02:22.3]} 17... Bf8 {[%clk
0:01:55.6]} 18. Nxe6 {[%clk 0:02:03.2]} 18... fxe6 {[%clk 0:01:51.7]} 19. Bg5
{[%clk 0:01:56.6]} 19... Re8 {[%clk 0:01:42.9]} 20. Bxd5 {[%clk 0:01:55.6]}
20... Nc5 {[%clk 0:01:35.9]} 21. b4 {[%clk 0:01:35]} 21... Kf7 {[%clk
0:01:35.4]} 22. Bf3 {[%clk 0:01:06.3]} 22... Na6 {[%clk 0:01:32.5]} 23. a3
{[%clk 0:01:06.9]} 23... b6 {[%clk 0:01:26.2]} 24. Bf4 {[%clk 0:01:04.7]} 24...
Bg7 {[%clk 0:01:21.6]} 25. Re2 {[%clk 0:00:59.8]} 25... Nb8 {[%clk 0:01:13.9]}
26. Rae1 {[%clk 0:00:58.4]} 26... Rhf8 {[%clk 0:00:30.2]} 27. Bxb8 {[%clk
0:00:55.7]} 27... Rxb8 {[%clk 0:00:30.3]} 28. Rxe6 {[%clk 0:00:57.4]} 28... Rfe8
{[%clk 0:00:28.8]} 29. Bd5 {[%clk 0:00:48.1]} 29... Rxe6 {[%clk 0:00:26.4]} 30.
Rxe6 {[%clk 0:00:41.2]} 30... Rd8 {[%clk 0:00:26.8]} 31. Bb3 {[%clk 0:00:41.1]}
31... Kf8 {[%clk 0:00:20.1]} 32. Kf1 {[%clk 0:00:39.2]} 32... Rd7 {[%clk
0:00:13.3]} 33. Rc6 {[%clk 0:00:39.1]} 33... Ke7 {[%clk 0:00:13.1]} 34. Rc8
{[%clk 0:00:39.6]} 34... Rd8 {[%clk 0:00:14]} 35. Rc6 {[%clk 0:00:36.2]} 35...
Rd6 {[%clk 0:00:14.1]} 36. Rc4 {[%clk 0:00:33.1]} 36... a5 {[%clk 0:00:14.5]}
37. bxa5 {[%clk 0:00:33.6]} 37... bxa5 {[%clk 0:00:16.4]} 38. Rc5 {[%clk
0:00:31.2]} 38... Ra6 {[%clk 0:00:16.5]} 39. Rc7+ {[%clk 0:00:30.3]} 39... Kd6
{[%clk 0:00:09.7]} 40. Rxg7 {[%clk 0:00:31.2]} 40... a4 {[%clk 0:00:10.9]} 41.
Bc4 {[%clk 0:00:32.5]} 41... Rb6 {[%clk 0:00:11.2]} 42. Rxh7 {[%clk 0:00:33]}
42... Ke5 {[%clk 0:00:10.5]} 43. Ra7 {[%clk 0:00:33.4]} 43... Kf4 {[%clk
0:00:06.5]} 44. Rxa4 {[%clk 0:00:31.2]} 44... Rb2 {[%clk 0:00:06.2]} 45. Bb3
{[%clk 0:00:30.7]} 45... Ke5 {[%clk 0:00:04.4]} 46. Ke2 {[%clk 0:00:30.2]} 1-0

[Event "*** Titled Tuesday 3|2 Blitz"]
[Site "Chess.com"]
[Date "2015.10.06"]
[Round "6"]
[White "Po6Don"]
[Black "Bab3s"]
[Result "0-1"]
[WhiteElo "2020"]
[BlackElo "2121"]
[TimeControl "180+2"]
[EndTime "18:17:35 PDT"]
[Termination "Bab3s won on time"]

1. e4 {[%clk 0:03:00.9]} 1... e5 {[%clk 0:03:00.7]} 2. Nf3 {[%clk 0:03:00.7]}
2... Nc6 {[%clk 0:03:01.8]} 3. Bc4 {[%clk 0:03:01.7]} 3... Bc5 {[%clk
0:03:01.7]} 4. b4 {[%clk 0:03:02.1]} 4... Bxb4 {[%clk 0:03:02.1]} 5. c3 {[%clk
0:03:03.1]} 5... Ba5 {[%clk 0:03:03.3]} 6. d4 {[%clk 0:03:04]} 6... d6 {[%clk
0:03:03.5]} 7. Qb3 {[%clk 0:03:05.1]} 7... Qd7 {[%clk 0:03:00.6]} 8. O-O {[%clk
0:03:05.2]} 8... Bb6 {[%clk 0:02:59.5]} 9. a4 {[%clk 0:02:56]} 9... a6 {[%clk
0:02:49.8]} 10. dxe5 {[%clk 0:02:38.3]} 10... Na5 {[%clk 0:02:29.5]} 11. Qa2
{[%clk 0:02:31.9]} 11... Nxc4 {[%clk 0:02:20.4]} 12. Qxc4 {[%clk 0:02:32.1]}
12... Ne7 {[%clk 0:02:21.6]} 13. a5 {[%clk 0:02:25.6]} 13... Bc5 {[%clk
0:02:19.3]} 14. exd6 {[%clk 0:02:23.9]} 14... cxd6 {[%clk 0:02:18.7]} 15. e5
{[%clk 0:02:06.7]} 15... O-O {[%clk 0:02:15.4]} 16. Rd1 {[%clk 0:02:07.3]} 16...
Qe6 {[%clk 0:01:26.5]} 17. Qxe6 {[%clk 0:01:58.6]} 17... Bxe6 {[%clk 0:01:28.4]}
18. exd6 {[%clk 0:01:59.7]} 18... Nf5 {[%clk 0:01:28.1]} 19. Ba3 {[%clk
0:01:57.2]} 19... Bxa3 {[%clk 0:01:12.7]} 20. Nxa3 {[%clk 0:01:59.1]} 20... Rfd8
{[%clk 0:01:13.7]} 21. Rab1 {[%clk 0:01:56.2]} 21... Nxd6 {[%clk 0:00:58.4]} 22.
Nd4 {[%clk 0:01:40.7]} 22... Bd5 {[%clk 0:00:49.7]} 23. f3 {[%clk 0:01:17.5]}
23... Rac8 {[%clk 0:00:47.4]} 24. Ne2 {[%clk 0:01:13.1]} 24... Be6 {[%clk
0:00:38.7]} 25. Kf2 {[%clk 0:01:13.9]} 25... Kf8 {[%clk 0:00:36.9]} 26. Rb6
{[%clk 0:01:11.9]} 26... Ke7 {[%clk 0:00:36.2]} 27. Re1 {[%clk 0:00:59.7]} 27...
Rc5 {[%clk 0:00:25.7]} 28. c4 {[%clk 0:00:25.1]} 28... Rxa5 {[%clk 0:00:23.6]}
29. Nc2 {[%clk 0:00:26.2]} 29... Rd7 {[%clk 0:00:18.7]} 30. Ne3 {[%clk
0:00:19.8]} 30... Ra2 {[%clk 0:00:16.2]} 31. Kg1 {[%clk 0:00:19.7]} 31... a5
{[%clk 0:00:11.7]} 32. Nf4 {[%clk 0:00:20.5]} 32... Kd8 {[%clk 0:00:09.6]} 33.
c5 {[%clk 0:00:18.5]} 33... Nc8 {[%clk 0:00:07.9]} 34. Rxe6 {[%clk 0:00:09.4]}
34... fxe6 {[%clk 0:00:09.8]} 35. Nxe6+ {[%clk 0:00:11.3]} 35... Ke7 {[%clk
0:00:08]} 36. Nf5+ {[%clk 0:00:12.6]} 36... Kf6 {[%clk 0:00:07.1]} 37. g4 {[%clk
0:00:10.5]} 37... Rdd2 {[%clk 0:00:06.3]} 38. Nf4 {[%clk 0:00:08.5]} 38... Rxh2
{[%clk 0:00:04.4]} 39. Re6+ {[%clk 0:00:09.1]} 39... Kg5 {[%clk 0:00:04.8]} 40.
Nd3 {[%clk 0:00:02.5]} 40... Rag2+ {[%clk 0:00:04.1]} 41. Kf1 {[%clk 0:00:03.3]}
41... Rd2 {[%clk 0:00:04.4]} 0-1